[Event "GrandPrix_29.05"]
[Site "Chess.com"]
[Date "2020.05.29"]
[Round "1"]
[White "Pash2015"]
[Black "chessfreak35"]
[Result "0-1"]
[WhiteElo "2196"]
[BlackElo "1871"]
[TimeControl "600+2"]
[EndTime "9:21:51 PDT"]
[Termination "chessfreak35 won by resignation"]

1. e4 {[%clk 0:09:55]} 1... e5 {[%clk 0:09:58.4]} 2. d4 {[%clk 0:09:55.6]} 2...
exd4 {[%clk 0:09:58.9]} 3. Nf3 {[%clk 0:09:56.6]} 3... Nc6 {[%clk 0:10:00.1]} 4.
Bc4 {[%clk 0:09:57.2]} 4... Nf6 {[%clk 0:09:59.8]} 5. Qe2 {[%clk 0:09:57.6]}
5... d6 {[%clk 0:09:30.8]} 6. h3 {[%clk 0:09:55]} 6... Be7 {[%clk 0:09:24.2]} 7.
O-O {[%clk 0:09:53.4]} 7... O-O {[%clk 0:09:25.3]} 8. Rd1 {[%clk 0:09:53.5]}
8... Re8 {[%clk 0:09:13.1]} 9. Nxd4 {[%clk 0:09:46.7]} 9... Bf8 {[%clk
0:09:03.6]} 10. Nc3 {[%clk 0:09:42.2]} 10... Bd7 {[%clk 0:08:56.5]} 11. Bg5
{[%clk 0:09:41.2]} 11... h6 {[%clk 0:08:57.1]} 12. Bh4 {[%clk 0:09:39.6]} 12...
Ne5 {[%clk 0:08:52.8]} 13. Bb3 {[%clk 0:09:37.1]} 13... Ng6 {[%clk 0:08:53.6]}
14. Bg3 {[%clk 0:09:37.4]} 14... a6 {[%clk 0:08:28.4]} 15. a4 {[%clk 0:09:34.9]}
15... Qe7 {[%clk 0:08:20.4]} 16. f3 {[%clk 0:09:26.4]} 16... Nh5 {[%clk
0:07:48.6]} 17. Bh2 {[%clk 0:09:19.8]} 17... Qg5 {[%clk 0:07:36.2]} 18. Kh1
{[%clk 0:09:03.5]} 18... c5 {[%clk 0:07:27]} 19. Bxf7+ {[%clk 0:08:39.3]} 19...
Kxf7 {[%clk 0:07:25.9]} 20. Qc4+ {[%clk 0:08:37.6]} 20... Be6 {[%clk 0:06:33.3]}
21. Nxe6 {[%clk 0:08:35.3]} 21... Rxe6 {[%clk 0:06:35.2]} 22. Bxd6 {[%clk
0:08:11.2]} 22... Bxd6 {[%clk 0:05:47.3]} 23. Rxd6 {[%clk 0:08:13.1]} 23... Nhf4
{[%clk 0:05:42.7]} 24. Rg1 {[%clk 0:08:03.5]} 24... Re8 {[%clk 0:05:27.9]} 25.
a5 {[%clk 0:07:42.8]} 25... Qe5 {[%clk 0:05:20.9]} 26. Rgd1 {[%clk 0:07:34.2]}
26... Kf8 {[%clk 0:05:18.1]} 27. Rxe6 {[%clk 0:07:31.4]} 27... Rxe6 {[%clk
0:05:16.7]} 28. Nd5 {[%clk 0:07:23.1]} 28... Rd6 {[%clk 0:03:28.2]} 29. Qxc5
{[%clk 0:07:18.3]} 29... Kg8 {[%clk 0:03:29.4]} 30. Qc8+ {[%clk 0:06:57.7]}
30... Kh7 {[%clk 0:03:27.9]} 31. c4 {[%clk 0:06:52]} 31... Rc6 {[%clk
0:03:22.1]} 32. Qxb7 {[%clk 0:06:47]} 32... Rxc4 {[%clk 0:03:21]} 33. Qxa6
{[%clk 0:06:39.6]} 33... Rc2 {[%clk 0:03:08.4]} 34. Rg1 {[%clk 0:06:37.3]} 34...
Ne2 {[%clk 0:03:02.9]} 35. Re1 {[%clk 0:06:25.4]} 35... Nef4 {[%clk 0:02:42.9]}
36. Ne3 {[%clk 0:05:54.7]} 36... Rxb2 {[%clk 0:02:35.8]} 37. Ng4 {[%clk
0:05:38.9]} 37... Qc3 {[%clk 0:02:29]} 38. Rg1 {[%clk 0:05:39.1]} 38... Nxh3
{[%clk 0:02:26.4]} 39. Rd1 {[%clk 0:05:08.9]} 39... Nhf4 {[%clk 0:02:25.5]} 40.
Rg1 {[%clk 0:05:00.5]} 40... Nxg2 {[%clk 0:01:47.2]} 41. Nh2 {[%clk 0:03:50.9]}
41... N2f4 {[%clk 0:01:43]} 42. Qf1 {[%clk 0:03:33.8]} 42... Qd2 {[%clk
0:01:35.7]} 43. Ng4 {[%clk 0:03:17]} 43... Ne5 {[%clk 0:01:35.3]} 44. Qc1 {[%clk
0:02:43.4]} 44... Qxc1 {[%clk 0:00:51]} 45. Rxc1 {[%clk 0:02:45.3]} 45... Nxg4
{[%clk 0:00:52.2]} 46. fxg4 {[%clk 0:02:41]} 46... Ra2 {[%clk 0:00:53.7]} 47.
Rc5 {[%clk 0:02:40.7]} 47... Nd3 {[%clk 0:00:55.1]} 48. Rb5 {[%clk 0:02:38.1]}
48... Nf2+ {[%clk 0:00:46]} 49. Kg2 {[%clk 0:02:38.6]} 49... Nxe4+ {[%clk
0:00:47.6]} 50. Kf3 {[%clk 0:02:37.4]} 50... Nf6 {[%clk 0:00:44.5]} 51. g5
{[%clk 0:02:35]} 51... Ra3+ {[%clk 0:00:45.3]} 52. Kf4 {[%clk 0:02:30.8]} 52...
Ra4+ {[%clk 0:00:44.1]} 53. Kf5 {[%clk 0:02:32]} 53... hxg5 {[%clk 0:00:43.2]}
54. Kxg5 {[%clk 0:02:32.2]} 54... Ne4+ {[%clk 0:00:44.9]} 55. Kh5 {[%clk
0:02:32.7]} 55... g6+ {[%clk 0:00:45.7]} 56. Kh4 {[%clk 0:02:33.4]} 56... Nd6+
{[%clk 0:00:47]} 0-1

[Event "GrandPrix_29.05"]
[Site "Chess.com"]
[Date "2020.05.29"]
[Round "1"]
[White "BakaPG"]
[Black "VSERGUEI"]
[Result "0-1"]
[WhiteElo "2120"]
[BlackElo "2578"]
[TimeControl "600+2"]
[EndTime "9:21:52 PDT"]
[Termination "VSERGUEI won by resignation"]

1. e4 {[%clk 0:09:58.4]} 1... e6 {[%clk 0:09:59.7]} 2. d4 {[%clk 0:09:57.7]}
2... d5 {[%clk 0:10:00.3]} 3. e5 {[%clk 0:09:57.3]} 3... c5 {[%clk 0:09:59.5]}
4. c3 {[%clk 0:09:57.7]} 4... Nc6 {[%clk 0:09:58.6]} 5. Nf3 {[%clk 0:09:56.7]}
5... Bd7 {[%clk 0:09:58.1]} 6. Be2 {[%clk 0:09:55.2]} 6... cxd4 {[%clk
0:09:55.4]} 7. cxd4 {[%clk 0:09:55.1]} 7... Nge7 {[%clk 0:09:54.8]} 8. O-O
{[%clk 0:09:26.9]} 8... Nf5 {[%clk 0:09:54.2]} 9. b3 {[%clk 0:09:22.3]} 9... Rc8
{[%clk 0:09:40.8]} 10. Bb2 {[%clk 0:09:18.6]} 10... a6 {[%clk 0:08:52.4]} 11.
Kh1 {[%clk 0:08:18.3]} 11... h5 {[%clk 0:07:57]} 12. Bd3 {[%clk 0:06:53.9]}
12... g6 {[%clk 0:07:32.1]} 13. a3 {[%clk 0:06:32.6]} 13... h4 {[%clk
0:06:58.2]} 14. h3 {[%clk 0:05:55.2]} 14... Be7 {[%clk 0:06:47.7]} 15. Nc3
{[%clk 0:05:11.1]} 15... Kf8 {[%clk 0:06:27.8]} 16. Ne2 {[%clk 0:05:08.6]} 16...
Kg7 {[%clk 0:06:14.3]} 17. Rc1 {[%clk 0:04:54]} 17... Na5 {[%clk 0:05:53.7]} 18.
b4 {[%clk 0:04:27.2]} 18... Nc6 {[%clk 0:05:51.6]} 19. Nd2 {[%clk 0:04:16.7]}
19... Na7 {[%clk 0:05:47.6]} 20. Rxc8 {[%clk 0:04:13.9]} 20... Qxc8 {[%clk
0:05:47.6]} 21. Nc3 {[%clk 0:03:57.9]} 21... Nb5 {[%clk 0:05:33.8]} 22. Nxb5
{[%clk 0:03:52.2]} 22... Bxb5 {[%clk 0:05:33.5]} 23. Bxb5 {[%clk 0:03:52.4]}
23... axb5 {[%clk 0:05:33.9]} 24. Qb1 {[%clk 0:03:42.2]} 24... Qd7 {[%clk
0:05:08.1]} 25. Nb3 {[%clk 0:03:32.5]} 25... Rc8 {[%clk 0:04:49.6]} 26. Nc5
{[%clk 0:03:29.8]} 26... Qc6 {[%clk 0:04:45.5]} 27. Rc1 {[%clk 0:03:28.1]} 27...
b6 {[%clk 0:04:24.7]} 28. Nd3 {[%clk 0:03:16.6]} 28... Qd7 {[%clk 0:04:20.1]}
29. Bc3 {[%clk 0:03:06.8]} 29... Qa7 {[%clk 0:03:53]} 30. Kh2 {[%clk 0:02:46.7]}
30... Qxa3 {[%clk 0:03:32.2]} 31. Bb2 {[%clk 0:02:36.6]} 31... Rxc1 {[%clk
0:03:19.9]} 32. Bxc1 {[%clk 0:02:33.3]} 32... Qc3 {[%clk 0:03:14.1]} 33. Bb2
{[%clk 0:01:27.8]} 33... Qc4 {[%clk 0:03:03.1]} 34. Ne1 {[%clk 0:01:14.1]} 34...
Nxd4 {[%clk 0:02:52.6]} 35. Bxd4 {[%clk 0:01:10.8]} 35... Qxd4 {[%clk
0:02:52.4]} 36. Nd3 {[%clk 0:01:05.9]} 36... Qc4 {[%clk 0:02:25.6]} 37. Qd1
{[%clk 0:00:56]} 37... Bxb4 {[%clk 0:02:14.3]} 38. Nxb4 {[%clk 0:00:54]} 38...
Qf4+ {[%clk 0:02:07.1]} 39. Kg1 {[%clk 0:00:39.2]} 39... Qxb4 {[%clk 0:02:06.1]}
40. Qe2 {[%clk 0:00:35.6]} 40... Qe4 {[%clk 0:01:50.1]} 41. Qc2 {[%clk
0:00:31.7]} 41... Qxc2 {[%clk 0:01:43.8]} 0-1

[Event "GrandPrix_29.05"]
[Site "Chess.com"]
[Date "2020.05.29"]
[Round "1"]
[White "moro182"]
[Black "gummigisla"]
[Result "1-0"]
[WhiteElo "2540"]
[BlackElo "2123"]
[TimeControl "600+2"]
[EndTime "9:21:53 PDT"]
[Termination "moro182 won by resignation"]

1. d4 {[%clk 0:09:54.8]} 1... Nf6 {[%clk 0:09:58.4]} 2. c4 {[%clk 0:09:52.1]}
2... g6 {[%clk 0:09:58.3]} 3. g3 {[%clk 0:09:52]} 3... Bg7 {[%clk 0:09:59]} 4.
Bg2 {[%clk 0:09:52.9]} 4... O-O {[%clk 0:10:00.3]} 5. Nc3 {[%clk 0:09:53.9]}
5... d6 {[%clk 0:10:01.3]} 6. Nf3 {[%clk 0:09:55]} 6... a6 {[%clk 0:10:00.1]} 7.
O-O {[%clk 0:09:54.7]} 7... Nc6 {[%clk 0:09:53]} 8. d5 {[%clk 0:09:45.7]} 8...
Nb8 {[%clk 0:09:50.9]} 9. h3 {[%clk 0:09:37.2]} 9... c5 {[%clk 0:09:44.9]} 10.
e4 {[%clk 0:09:34.1]} 10... Bd7 {[%clk 0:09:42.7]} 11. e5 {[%clk 0:09:26.5]}
11... Ne8 {[%clk 0:09:33]} 12. Re1 {[%clk 0:09:25.6]} 12... dxe5 {[%clk
0:09:27.3]} 13. Nxe5 {[%clk 0:09:23.4]} 13... Nd6 {[%clk 0:09:27.8]} 14. Qe2
{[%clk 0:08:15.9]} 14... Nf5 {[%clk 0:09:11]} 15. Bf4 {[%clk 0:07:56.5]} 15...
Nd4 {[%clk 0:09:02.3]} 16. Qd2 {[%clk 0:07:52.2]} 16... Bxh3 {[%clk 0:08:33.1]}
17. Bh6 {[%clk 0:06:49.9]} 17... Nd7 {[%clk 0:06:25.1]} 18. Bxg7 {[%clk
0:05:42.8]} 18... Kxg7 {[%clk 0:06:22.9]} 19. Nxd7 {[%clk 0:05:23]} 19... Bxg2
{[%clk 0:05:12.2]} 20. Kxg2 {[%clk 0:05:24.9]} 20... Qxd7 {[%clk 0:05:12.2]} 21.
Ne4 {[%clk 0:05:16.2]} 21... b6 {[%clk 0:05:04]} 22. Rh1 {[%clk 0:04:22.1]}
22... h5 {[%clk 0:04:59]} 23. Rae1 {[%clk 0:03:54.4]} 23... Rae8 {[%clk
0:03:46.7]} 24. b4 {[%clk 0:02:58.3]} 24... e5 {[%clk 0:03:27.3]} 25. bxc5
{[%clk 0:02:07.3]} 25... bxc5 {[%clk 0:03:26]} 26. Rxh5 {[%clk 0:00:50.3]} 26...
Rh8 {[%clk 0:03:23.5]} 27. Rhh1 {[%clk 0:00:16.6]} 27... Qg4 {[%clk 0:03:18]}
28. Qd3 {[%clk 0:00:07.6]} 28... f5 {[%clk 0:03:06.1]} 29. Nxc5 {[%clk
0:00:05.6]} 29... f4 {[%clk 0:03:05.7]} 30. Ne6+ {[%clk 0:00:04.9]} 30... Rxe6
{[%clk 0:03:00.7]} 31. Rxh8 {[%clk 0:00:06]} 31... f3+ {[%clk 0:03:00.4]} 32.
Kg1 {[%clk 0:00:04.5]} 32... Kxh8 {[%clk 0:02:59.6]} 33. dxe6 {[%clk 0:00:05]}
33... Ne2+ {[%clk 0:02:42.8]} 34. Rxe2 {[%clk 0:00:05.3]} 34... fxe2 {[%clk
0:02:41.9]} 35. Qe3 {[%clk 0:00:04.1]} 35... Qxe6 {[%clk 0:02:32.6]} 36. Qxe2
{[%clk 0:00:05.3]} 36... Qd6 {[%clk 0:02:32.2]} 37. Qe4 {[%clk 0:00:06]} 37...
Kg7 {[%clk 0:02:32.1]} 38. Kg2 {[%clk 0:00:07.2]} 38... Kf6 {[%clk 0:02:31.5]}
39. Qf3+ {[%clk 0:00:07]} 39... Kg7 {[%clk 0:02:30.9]} 40. Qb7+ {[%clk
0:00:07.8]} 40... Kf6 {[%clk 0:02:30.6]} 41. a4 {[%clk 0:00:09.3]} 41... Kg5
{[%clk 0:02:25.7]} 42. Qd5 {[%clk 0:00:08.6]} 42... Qxd5+ {[%clk 0:02:22.2]} 43.
cxd5 {[%clk 0:00:10.5]} 43... e4 {[%clk 0:02:23.2]} 44. Kh3 {[%clk 0:00:10.6]}
44... Kf6 {[%clk 0:02:24.5]} 45. Kg4 {[%clk 0:00:11.3]} 45... Ke5 {[%clk
0:02:23.8]} 46. Kg5 {[%clk 0:00:12.8]} 46... Kxd5 {[%clk 0:02:24.6]} 47. Kxg6
{[%clk 0:00:14.1]} 47... Kd4 {[%clk 0:02:26.1]} 48. Kf5 {[%clk 0:00:14.8]} 1-0

[Event "GrandPrix_29.05"]
[Site "Chess.com"]
[Date "2020.05.29"]
[Round "1"]
[White "hubertsmazak"]
[Black "Forking_U"]
[Result "1-0"]
[WhiteElo "2307"]
[BlackElo "2093"]
[TimeControl "600+2"]
[EndTime "9:22:00 PDT"]
[Termination "hubertsmazak won on time"]

1. d4 {[%clk 0:10:01.9]} 1... d5 {[%clk 0:09:56.6]} 2. c4 {[%clk 0:10:00.5]}
2... c6 {[%clk 0:09:58.1]} 3. cxd5 {[%clk 0:10:00.8]} 3... cxd5 {[%clk
0:09:58.8]} 4. Bf4 {[%clk 0:10:01.9]} 4... Nc6 {[%clk 0:09:50.6]} 5. e3 {[%clk
0:10:02.9]} 5... Nf6 {[%clk 0:09:50.2]} 6. Nc3 {[%clk 0:10:03.5]} 6... Bf5
{[%clk 0:09:37.6]} 7. Qb3 {[%clk 0:10:03.7]} 7... Na5 {[%clk 0:09:38.4]} 8. Qa4+
{[%clk 0:10:04.1]} 8... Bd7 {[%clk 0:09:39.3]} 9. Qc2 {[%clk 0:10:05.5]} 9... e6
{[%clk 0:09:34.8]} 10. Bd3 {[%clk 0:10:06.5]} 10... Nc6 {[%clk 0:09:35.8]} 11.
Qe2 {[%clk 0:09:48.4]} 11... Be7 {[%clk 0:09:19]} 12. h3 {[%clk 0:09:45.7]}
12... O-O {[%clk 0:08:01.2]} 13. Nf3 {[%clk 0:09:43.9]} 13... Ne8 {[%clk
0:06:59.6]} 14. O-O {[%clk 0:09:26.2]} 14... f5 {[%clk 0:06:49.7]} 15. Ne5
{[%clk 0:09:17.9]} 15... Bd6 {[%clk 0:06:33.9]} 16. Nxc6 {[%clk 0:09:05.5]}
16... Bxc6 {[%clk 0:06:28.8]} 17. Bxd6 {[%clk 0:09:06.3]} 17... Nxd6 {[%clk
0:06:28.8]} 18. b4 {[%clk 0:07:23.2]} 18... Rc8 {[%clk 0:06:27]} 19. b5 {[%clk
0:07:16.4]} 19... Bd7 {[%clk 0:06:09.2]} 20. Na4 {[%clk 0:07:04.7]} 20... b6
{[%clk 0:06:05.4]} 21. Rac1 {[%clk 0:06:55.9]} 21... Qe7 {[%clk 0:05:47.9]} 22.
Nb2 {[%clk 0:06:46.5]} 22... Ne4 {[%clk 0:04:54.8]} 23. Bxe4 {[%clk 0:06:13.7]}
23... fxe4 {[%clk 0:04:55.3]} 24. a4 {[%clk 0:06:14.6]} 24... Qb4 {[%clk
0:04:52.4]} 25. Rfd1 {[%clk 0:05:55.7]} 25... h6 {[%clk 0:04:20.6]} 26. Rxc8
{[%clk 0:05:34]} 26... Rxc8 {[%clk 0:04:19.9]} 27. Qd2 {[%clk 0:05:35.3]} 27...
Qxd2 {[%clk 0:03:58.4]} 28. Rxd2 {[%clk 0:05:37.2]} 28... Rc3 {[%clk 0:03:36.1]}
29. Kf1 {[%clk 0:05:32.9]} 29... Kf7 {[%clk 0:03:20.3]} 30. Ke2 {[%clk
0:05:31.4]} 30... Ke7 {[%clk 0:03:13.5]} 31. Kd1 {[%clk 0:05:29.3]} 31... Kd6
{[%clk 0:03:07]} 32. Rc2 {[%clk 0:05:30.5]} 32... Ra3 {[%clk 0:03:07.9]} 33. Kd2
{[%clk 0:05:22]} 33... Ra1 {[%clk 0:02:34]} 34. Rc1 {[%clk 0:05:17.1]} 34... Ra3
{[%clk 0:02:34.9]} 35. Rc3 {[%clk 0:04:59.3]} 35... Ra1 {[%clk 0:02:34.8]} 36.
Rc1 {[%clk 0:04:55.4]} 36... Ra3 {[%clk 0:02:35.7]} 37. f3 {[%clk 0:04:24.6]}
37... exf3 {[%clk 0:02:30]} 38. gxf3 {[%clk 0:04:26.5]} 38... g5 {[%clk
0:02:30.4]} 39. h4 {[%clk 0:04:23.8]} 39... gxh4 {[%clk 0:01:32.2]} 40. Rh1
{[%clk 0:04:23.4]} 40... a6 {[%clk 0:01:33.6]} 41. bxa6 {[%clk 0:04:02]} 41...
Bxa4 {[%clk 0:01:34.7]} 42. Rxh4 {[%clk 0:04:03]} 42... Bb5 {[%clk 0:01:16.1]}
43. Rxh6 {[%clk 0:04:00.8]} 43... Rxa6 {[%clk 0:01:17.4]} 44. e4 {[%clk
0:03:54]} 44... dxe4 {[%clk 0:01:13.8]} 45. fxe4 {[%clk 0:03:55.9]} 45... Ra3
{[%clk 0:01:05.5]} 46. d5 {[%clk 0:03:53.3]} 46... Ke5 {[%clk 0:00:31.3]} 47.
Rxe6+ {[%clk 0:03:49.7]} 47... Kd4 {[%clk 0:00:32.7]} 48. Rxb6 {[%clk
0:03:50.6]} 48... Rb3 {[%clk 0:00:11.1]} 49. Kc2 {[%clk 0:03:37.8]} 49... Rb4
{[%clk 0:00:12.3]} 50. Re6 {[%clk 0:03:34.9]} 50... Bd7 {[%clk 0:00:03.5]} 51.
Re7 {[%clk 0:03:22.4]} 51... Bg4 {[%clk 0:00:04.5]} 52. d6 {[%clk 0:03:21.2]}
52... Kc5 {[%clk 0:00:02.7]} 53. e5 {[%clk 0:03:16.6]} 53... Rd4 {[%clk
0:00:03]} 54. Kc3 {[%clk 0:03:06.7]} 54... Rd5 {[%clk 0:00:02.7]} 55. Nd3+
{[%clk 0:03:05]} 55... Kc6 {[%clk 0:00:03.3]} 56. Nb4+ {[%clk 0:03:04.8]} 1-0

[Event "GrandPrix_29.05"]
[Site "Chess.com"]
[Date "2020.05.29"]
[Round "1"]
[White "dzhumagaliev"]
[Black "AvitalBor"]
[Result "0-1"]
[WhiteElo "2097"]
[BlackElo "2583"]
[TimeControl "600+2"]
[EndTime "9:22:01 PDT"]
[Termination "AvitalBor won by resignation"]

1. Nf3 {[%clk 0:09:59.4]} 1... d5 {[%clk 0:10:00]} 2. d4 {[%clk 0:10:00.1]} 2...
Nf6 {[%clk 0:09:59.8]} 3. c4 {[%clk 0:10:01.1]} 3... e6 {[%clk 0:09:59.7]} 4. g3
{[%clk 0:10:02.3]} 4... dxc4 {[%clk 0:09:55.8]} 5. Bg2 {[%clk 0:10:02.9]} 5...
Nc6 {[%clk 0:09:56.9]} 6. O-O {[%clk 0:10:03.5]} 6... Rb8 {[%clk 0:09:57.7]} 7.
Nc3 {[%clk 0:09:58.7]} 7... b5 {[%clk 0:09:56.7]} 8. Ne5 {[%clk 0:09:52.6]} 8...
Nxe5 {[%clk 0:09:24.1]} 9. dxe5 {[%clk 0:09:54.5]} 9... Nd7 {[%clk 0:09:23.7]}
10. Qd4 {[%clk 0:09:51.5]} 10... Bb7 {[%clk 0:09:12.7]} 11. a4 {[%clk
0:08:38.9]} 11... Bxg2 {[%clk 0:08:59.1]} 12. Kxg2 {[%clk 0:08:40.8]} 12... b4
{[%clk 0:08:36.8]} 13. Ne4 {[%clk 0:08:24]} 13... c5 {[%clk 0:07:22]} 14. Qxc4
{[%clk 0:08:16.6]} 14... Nxe5 {[%clk 0:07:15]} 15. Qc2 {[%clk 0:08:14.6]} 15...
b3 {[%clk 0:06:55.7]} 16. Qc3 {[%clk 0:07:47.9]} 16... Qd5 {[%clk 0:06:07.2]}
17. f3 {[%clk 0:07:41.5]} 17... Rb4 {[%clk 0:05:26.8]} 18. Bf4 {[%clk 0:07:20]}
18... Nc6 {[%clk 0:05:08.2]} 19. Rfd1 {[%clk 0:04:46.8]} 19... Rd4 {[%clk
0:05:06.6]} 20. Nf2 {[%clk 0:04:36.4]} 20... Qc4 {[%clk 0:04:16.1]} 21. Qe1
{[%clk 0:03:09.7]} 21... Be7 {[%clk 0:04:02.7]} 22. Rdc1 {[%clk 0:02:53.7]}
22... Qa6 {[%clk 0:03:54]} 23. Nd3 {[%clk 0:02:14.9]} 23... c4 {[%clk
0:03:09.4]} 24. Ne5 {[%clk 0:02:15.9]} 24... O-O {[%clk 0:03:09.8]} 25. Be3
{[%clk 0:02:05.9]} 25... Rd5 {[%clk 0:02:47.7]} 26. Nxc4 {[%clk 0:01:54.3]}
26... Nb4 {[%clk 0:02:46.6]} 27. Na3 {[%clk 0:01:54.1]} 27... h5 {[%clk
0:02:07.4]} 28. Bd2 {[%clk 0:01:31.4]} 28... Re5 {[%clk 0:02:07.9]} 29. Nc4
{[%clk 0:01:17.6]} 29... Nd3 {[%clk 0:01:52.4]} 30. Qd1 {[%clk 0:01:02.2]} 30...
Nxc1 {[%clk 0:01:49]} 31. Nxe5 {[%clk 0:01:03.1]} 31... Qxe2+ {[%clk 0:01:43.9]}
32. Qxe2 {[%clk 0:01:03.9]} 32... Nxe2 {[%clk 0:01:45.4]} 33. Re1 {[%clk
0:00:50.6]} 33... Nd4 {[%clk 0:01:43.2]} 34. Bc3 {[%clk 0:00:50.3]} 34... Nc2
{[%clk 0:01:40.6]} 35. Re4 {[%clk 0:00:51.3]} 35... Rc8 {[%clk 0:01:37.1]} 36.
f4 {[%clk 0:00:49.7]} 36... Rxc3 {[%clk 0:01:32.8]} 37. bxc3 {[%clk 0:00:25.7]}
37... b2 {[%clk 0:01:33.4]} 38. Rc4 {[%clk 0:00:24.1]} 38... Ne3+ {[%clk
0:01:29.9]} 0-1

[Event "GrandPrix_29.05"]
[Site "Chess.com"]
[Date "2020.05.29"]
[Round "1"]
[White "Novoselski"]
[Black "WildBizon"]
[Result "1-0"]
[WhiteElo "2415"]
[BlackElo "1930"]
[TimeControl "600+2"]
[EndTime "9:22:01 PDT"]
[Termination "Novoselski won by checkmate"]

1. d4 {[%clk 0:09:58.7]} 1... Nf6 {[%clk 0:09:58.7]} 2. c4 {[%clk 0:09:58.3]}
2... g6 {[%clk 0:09:56.1]} 3. Nc3 {[%clk 0:09:58.7]} 3... d5 {[%clk 0:09:54.5]}
4. Bg5 {[%clk 0:09:58]} 4... Ne4 {[%clk 0:09:55.1]} 5. Bh4 {[%clk 0:09:58.2]}
5... Nxc3 {[%clk 0:09:52.7]} 6. bxc3 {[%clk 0:10:00.1]} 6... dxc4 {[%clk
0:09:53.8]} 7. e3 {[%clk 0:09:58.7]} 7... Be6 {[%clk 0:09:50.8]} 8. Qb1 {[%clk
0:09:56.6]} 8... b6 {[%clk 0:09:42.5]} 9. Qb5+ {[%clk 0:09:42.7]} 9... Nd7
{[%clk 0:09:20.8]} 10. Bxc4 {[%clk 0:09:38.4]} 10... c6 {[%clk 0:08:59.1]} 11.
Qb3 {[%clk 0:09:34.8]} 11... Bxc4 {[%clk 0:08:54.3]} 12. Qxc4 {[%clk 0:09:36.7]}
12... Rc8 {[%clk 0:08:50.3]} 13. Nf3 {[%clk 0:09:34]} 13... Bg7 {[%clk
0:08:46.1]} 14. O-O {[%clk 0:09:29.6]} 14... O-O {[%clk 0:08:42.5]} 15. a4
{[%clk 0:09:25.7]} 15... c5 {[%clk 0:08:29]} 16. Qa6 {[%clk 0:09:19.1]} 16...
Rc7 {[%clk 0:08:16.9]} 17. Bg3 {[%clk 0:09:08.8]} 17... Qc8 {[%clk 0:08:17.1]}
18. Qe2 {[%clk 0:09:00.7]} 18... Rc6 {[%clk 0:08:09.5]} 19. d5 {[%clk
0:08:33.7]} 19... Rf6 {[%clk 0:07:59.7]} 20. e4 {[%clk 0:08:21.7]} 20... h6
{[%clk 0:07:45.2]} 21. a5 {[%clk 0:08:12]} 21... g5 {[%clk 0:07:38]} 22. h3
{[%clk 0:08:05]} 22... Rg6 {[%clk 0:07:27.4]} 23. e5 {[%clk 0:07:39.8]} 23... e6
{[%clk 0:07:10.5]} 24. c4 {[%clk 0:07:35.3]} 24... Re8 {[%clk 0:07:08]} 25. Rfe1
{[%clk 0:07:26.4]} 25... h5 {[%clk 0:06:25.1]} 26. axb6 {[%clk 0:07:09.5]} 26...
axb6 {[%clk 0:06:25.6]} 27. Rad1 {[%clk 0:06:58.3]} 27... g4 {[%clk 0:05:32.6]}
28. hxg4 {[%clk 0:06:42.1]} 28... Rxg4 {[%clk 0:05:33.5]} 29. Qd3 {[%clk
0:06:05.4]} 29... Nf8 {[%clk 0:05:15.8]} 30. Re4 {[%clk 0:05:55.8]} 30... Ng6
{[%clk 0:05:09.1]} 31. Rde1 {[%clk 0:05:52.6]} 31... Qd8 {[%clk 0:04:55.6]} 32.
d6 {[%clk 0:05:47]} 32... Rf8 {[%clk 0:04:39.1]} 33. Rxg4 {[%clk 0:05:39.7]}
33... hxg4 {[%clk 0:04:39.8]} 34. Nh2 {[%clk 0:05:40.3]} 34... Qg5 {[%clk
0:04:35.9]} 35. Qe4 {[%clk 0:05:34.7]} 35... Qf5 {[%clk 0:04:00.8]} 36. Nxg4
{[%clk 0:05:26.3]} 36... Qxe4 {[%clk 0:04:01.7]} 37. Rxe4 {[%clk 0:05:26.4]}
37... Ra8 {[%clk 0:04:03.2]} 38. Re1 {[%clk 0:05:22.4]} 38... Nf8 {[%clk
0:04:00.3]} 39. f4 {[%clk 0:05:04]} 39... Nd7 {[%clk 0:03:54]} 40. Bh4 {[%clk
0:04:50.2]} 40... Ra4 {[%clk 0:03:51.1]} 41. Rc1 {[%clk 0:04:49.2]} 41... Kh7
{[%clk 0:03:50.5]} 42. g3 {[%clk 0:04:42.2]} 42... Kg6 {[%clk 0:03:51.5]} 43.
Kg2 {[%clk 0:04:28.9]} 43... Ra3 {[%clk 0:03:51.1]} 44. Kf2 {[%clk 0:04:21]}
44... Kf5 {[%clk 0:03:50.3]} 45. Ne3+ {[%clk 0:04:09.1]} 45... Ke4 {[%clk
0:03:51.3]} 46. Re1 {[%clk 0:04:05.9]} 46... Kd3 {[%clk 0:03:29.1]} 47. Kf3
{[%clk 0:04:01.8]} 47... Kc3 {[%clk 0:03:11.4]} 48. g4 {[%clk 0:03:56.1]} 48...
Bxe5 {[%clk 0:02:33.2]} 49. fxe5 {[%clk 0:03:49.5]} 49... Nxe5+ {[%clk
0:02:35.1]} 50. Ke4 {[%clk 0:03:49.6]} 50... Nd7 {[%clk 0:02:26.3]} 51. Rf1
{[%clk 0:03:47.9]} 51... f5+ {[%clk 0:02:19.4]} 52. gxf5 {[%clk 0:03:46.4]}
52... exf5+ {[%clk 0:02:21.3]} 53. Rxf5 {[%clk 0:03:45]} 53... Kd2 {[%clk
0:02:08.5]} 54. Rf2+ {[%clk 0:03:39.8]} 54... Kc3 {[%clk 0:02:09.7]} 55. Rf7
{[%clk 0:03:36.1]} 55... Ra7 {[%clk 0:01:59.9]} 56. Nd5+ {[%clk 0:03:30.8]}
56... Kxc4 {[%clk 0:01:59.6]} 57. Nxb6+ {[%clk 0:03:29]} 57... Kb5 {[%clk
0:01:57.9]} 58. Nxd7 {[%clk 0:03:25.3]} 58... Ra4+ {[%clk 0:01:56.4]} 59. Ke5
{[%clk 0:03:17.1]} 59... Rxh4 {[%clk 0:01:55.7]} 60. Nf6 {[%clk 0:03:16.5]}
60... Rd4 {[%clk 0:01:52.3]} 61. Rb7+ {[%clk 0:03:11.6]} 61... Kc6 {[%clk
0:01:52.8]} 62. Rc7+ {[%clk 0:03:10.8]} 62... Kb6 {[%clk 0:01:54.3]} 63. Nd5+
{[%clk 0:03:10.3]} 63... Kb5 {[%clk 0:01:51.7]} 64. d7 {[%clk 0:03:09.4]} 64...
Kc4 {[%clk 0:01:52.4]} 65. d8=Q {[%clk 0:03:04.9]} 65... Kd3 {[%clk 0:01:53.5]}
66. Rxc5 {[%clk 0:03:02]} 66... Re4+ {[%clk 0:01:54.2]} 67. Kd6 {[%clk
0:03:01.9]} 67... Rd4 {[%clk 0:01:55.3]} 68. Rc3+ {[%clk 0:02:59.6]} 68... Ke2
{[%clk 0:01:56.7]} 69. Qe7+ {[%clk 0:02:58]} 69... Kd1 {[%clk 0:01:57.2]} 70.
Re3 {[%clk 0:02:51.8]} 70... Rd2 {[%clk 0:01:56.7]} 71. Re1+ {[%clk 0:02:49.9]}
71... Kc2 {[%clk 0:01:58]} 72. Re2 {[%clk 0:02:49.6]} 72... Rxe2 {[%clk
0:01:56.5]} 73. Qxe2+ {[%clk 0:02:48.8]} 73... Kc1 {[%clk 0:01:58.4]} 74. Kc5
{[%clk 0:02:45.8]} 74... Kb1 {[%clk 0:01:59.3]} 75. Kb4 {[%clk 0:02:45.7]} 75...
Ka1 {[%clk 0:02:01.2]} 76. Kb3 {[%clk 0:02:44.7]} 76... Kb1 {[%clk 0:02:03.1]}
77. Qe1# {[%clk 0:02:45]} 1-0